Workbook

Sheet Valuation
B2: Val Date | C2: 2024-08-10 | L2: USD SOFR Curve:
L3: Tenor | M3: Months | N3: Maturity Date | O3: Rate
B4: Fixed Leg: | E4: Float Leg: | L4: O/N | N4: 2024-08-11 | O4: 0.0535
B5: i | C5: 0.04 | E5: i | F5: SOFR | L5: 1M | M5: 1 | N5: =EDATE($C$2,M5) -> 2024-09-10 | O5: 0.05457
B6: Notional | C6: 1000000 | E6: Notional | F6: 1000000 | L6: 3M | M6: 3 | N6: =EDATE($C$2,M6) -> 2024-11-10 | O6: 0.0556614
B7: Freq | C7: 6M | E7: Freq | F7: 6M | L7: 6M | M7: 6 | N7: 2025-02-10 | O7: 0.0406328
L8: 9M | M8: 9 | N8: 2025-05-10 | O8: 0.0414455
L9: 1Y | M9: 12 | N9: 2025-08-10 | O9: 0.0422744
L10: 2Y | M10: 24 | N10: 2026-08-10 | O10: 0.0439654
L11: 3Y | M11: 36 | N11: 2027-08-10 | O11: 0.0417671
L12: 4Y | M12: 48 | N12: 2028-08-10 | O12: 0.0426024
B15: Fixed:
B17: Tenor | C17: Date | D17: Freq | E17: Notional | F17: Coupon rate | G17: CF | H17: Rate | I17: TTM | J17: DF | K17: Discounted CF
B18: 6 | C18: =EDATE($C$2,B18) -> 2025-02-10 | D18: 0.5 | E18: =$C$6 -> 1000000 | F18: =$C$5 -> 0.04 | G18: =F18*D18*E18 -> 20000 | H18: =Interpo(C18,$N$4:$N$12,$O$4:$O$12) -> 0.0406328 | I18: =YEARFRAC($C$2,C18,3) -> 0.504109589 | J18: =(1+H18)^(-I18) -> 0.9801220487 | K18: =G18*J18 -> 19602.44097
B19: 12 | C19: =EDATE($C$2,B19) -> 2025-08-10 | D19: 0.5 | E19: =$C$6 -> 1000000 | F19: =$C$5 -> 0.04 | G19: =F19*D19*E19 -> 20000 | H19: =Interpo(C19,$N$4:$N$12,$O$4:$O$12) -> 0.0422744 | I19: =YEARFRAC($C$2,C19,3) -> 1 | J19: =(1+H19)^(-I19) -> 0.9594402395 | K19: =G19*J19 -> 19188.80479
B20: 18 | C20: 2026-02-10 | D20: 0.5 | E20: 1000000 | F20: 0.04 | G20: 20000 | H20: 0.04312684932 | I20: 1.504109589 | J20: 0.9384668924 | K20: 18769.33785
B21: 24 | C21: 2026-08-10 | D21: 0.5 | E21: 1000000 | F21: 0.04 | G21: 20000 | H21: 0.0439654 | I21: 2 | J21: 0.9175458805 | K21: 18350.91761
F22: Total | G22: =SUM(G18:G21) -> 80000 | J22: Total | K22: =SUM(K18:K21) -> 75911.50122
B23: Float:
B25: Tenor | C25: Start Date | D25: End Date | E25: Freq | F25: Notional | G25: DF Start | H25: DF End | I25: Coupon rate | J25: CF | K25: Rate | L25: TTM | M25: DF | N25: Discounted CF
B26: 6 | C26: =EDATE(D26,-6) -> 2024-08-10 | D26: =EDATE($C$2,B26) -> 2025-02-10 | E26: 0.5 | F26: =$C$6 -> 1000000 | G26: =(1+Interpo(C26,$N$4:$N$12,$O$4:$O$12))^(-YEARFRAC($C$2,C26,3)) -> 1 | H26: =(1+Interpo(D26,$N$4:$N$12,$O$4:$O$12))^(-YEARFRAC($C$2,D26,3)) -> 0.9801220487 | I26: =(G26/H26-1)/YEARFRAC(C26,D26,3) -> 0.04023152593 | J26: =I26*E26*F26 -> 20115.76296 | K26: =Interpo(D26,$N$4:$N$12,$O$4:$O$12) -> 0.0406328 | L26: =YEARFRAC($C$2,D26,3) -> 0.504109589 | M26: =(1+K26)^(-L26) -> 0.9801220487 | N26: =J26*M26 -> 19715.90281
B27: 12 | C27: =D26 -> 2025-02-10 | D27: =EDATE($C$2,B27) -> 2025-08-10 | E27: 0.5 | F27: =$C$6 -> 1000000 | G27: =(1+Interpo(C27,$N$4:$N$12,$O$4:$O$12))^(-YEARFRAC($C$2,C27,3)) -> 0.9801220487 | H27: 0.9594402395 | I27: =(G27/H27-1)/YEARFRAC(C27,D27,3) -> 0.04346952418 | J27: =I27*E27*F27 -> 21734.76209 | K27: =Interpo(D27,$N$4:$N$12,$O$4:$O$12) -> 0.0422744 | L27: =YEARFRAC($C$2,D27,3) -> 1 | M27: =(1+K27)^(-L27) -> 0.9594402395 | N27: =J27*M27 -> 20853.20535
B28: 18 | C28: =D27 -> 2025-08-10 | D28: =EDATE($C$2,B28) -> 2026-02-10 | E28: 0.5 | F28: 1000000 | G28: 0.9594402395 | H28: 0.9384668924 | I28: 0.04433266417 | J28: =I28*E28*F28 -> 22166.33209 | K28: =Interpo(D28,$N$4:$N$12,$O$4:$O$12) -> 0.04312684932 | L28: =YEARFRAC($C$2,D28,3) -> 1.504109589 | M28: 0.9384668924 | N28: 20802.36879
B29: 24 | C29: 2026-02-10 | D29: =EDATE($C$2,B29) -> 2026-08-10 | E29: 0.5 | F29: 1000000 | G29: 0.9384668924 | H29: 0.9175458805 | I29: 0.04598002316 | J29: =I29*E29*F29 -> 22990.01158 | K29: =Interpo(D29,$N$4:$N$12,$O$4:$O$12) -> 0.0439654 | L29: =YEARFRAC($C$2,D29,3) -> 2 | M29: 0.9175458805 | N29: 21094.39042
I30: Total | J30: =SUM(J26:J29) -> 87006.86872 | M30: Total | N30: =SUM(N26:N29) -> 82465.86736
B32: Float Leg Payer | C32: =-N30+K22 -> -6554.366137
B33: Fixed Leg payer | C33: =-K22+N30 -> 6554.366137
